bitfinex-derivatives/quotes_ETHF0:USTF0_20210407
["timestamp","ask_amount","ask_price","bid_price","bid_amount"]
[1617810775465,2.90695,1982.0,1981.9,6.36]
[1617810775667,2.90695,1982.0,1981.2,6.06]
[1617810775865,2.7474,1982.5,1981.3,2.90695]
[1617810776066,84.6231,1982.6,1981.9,6.19]
[1617810776267,84.6231,1982.6,1981.4,6.17]
[1617810776765,84.6231,1982.6,1982.0,6.17]
[1617810776967,84.6231,1982.6,1981.4,6.08]
[1617810777170,84.6231,1982.6,1982.1,6.33]
[1617810777567,84.6231,1982.6,1981.3,2.90695]
[1617810777568,84.6231,1982.6,1981.4,6.11]
[1617810777766,84.6231,1982.6,1982.2,6.16]
[1617810778067,84.6231,1982.6,1981.8,3.45]
[1617810778369,84.6231,1982.6,1982.3,6.03]
[1617810778770,84.6231,1982.6,1981.8,6.16]
[1617810779070,84.6231,1982.6,1982.4,6.29]
[1617810779269,84.6231,1982.6,1981.8,6.34]
[1617810779670,84.6231,1982.6,1982.5,6.07]
[1617810779870,87.53005,1982.6,1981.8,6.05]
[1617810780472,87.53005,1982.6,1981.2,6.34]
[1617810780671,117.53005,1982.6,1981.2,6.34]
[1617810780970,87.53005,1982.6,1981.2,6.34]
[1617810781772,84.6231,1982.6,1981.3,2.90695]
[1617810782072,30.0,1982.6,1981.2,6.34]
[1617810782273,66.6543,1981.9,1981.4,6.1]
[1617810782569,66.6543,1981.9,1980.9,13.5476]
[1617810782570,68.8628,1981.9,1981.3,6.2]
[1617810782770,68.8628,1981.9,1981.5,6.14]
[1617810783171,68.8628,1981.9,1981.4,6.28]
[1617810783469,68.8628,1981.9,1981.6,6.34]
[1617810783670,68.8628,1981.9,1981.5,6.19]
[1617810783871,2.90695,1981.7,1981.5,9.09695]
[1617810784071,2.90695,1981.7,1981.5,2.90695]
[1617810784274,2.90695,1981.7,1981.6,6.25]
[1617810784874,63.8474,1982.5,1981.6,6.25]
[1617810785875,30.0,1983.4,1981.7,2.90695]
[1617810786175,82.032,1983.0,1981.7,2.90695]
[1617810786375,82.032,1983.0,1981.8,6.23]
[1617810786576,82.032,1983.0,1981.8,8.4245]
[1617810787275,82.032,1983.0,1981.8,10.4245]
[1617810787975,82.032,1983.0,1982.3,2.90695]
[1617810788376,82.032,1983.0,1982.4,6.2]
[1617810788878,112.032,1983.0,1982.4,6.2]
[1617810789677,112.032,1983.0,1981.7,6.11]
[1617810789978,114.8335,1983.0,1982.5,6.26]
[1617810790177,114.8335,1983.0,1981.8,2.90695]
[1617810790477,114.8335,1983.0,1982.6,6.1]
[1617810790878,114.8335,1983.0,1981.9,6.21]
[1617810791077,114.8335,1983.0,1982.7,6.17]
[1617810791578,114.8335,1983.0,1981.8,2.90695]
[1617810791579,2.0,1982.9,1981.9,6.1]
[1617810792078,2.90695,1982.0,1981.9,6.1]
[1617810796783,57.3362,1982.9,1981.9,6.1]
[1617810797082,57.3362,1982.9,1981.9,8.2913]
[1617810797584,6.12,1983.5,1981.9,8.2913]
[1617810797784,6.12,1983.5,1982.2,79.1075]
[1617810798082,6.12,1983.5,1982.4,2.90695]
[1617810798284,6.12,1983.5,1982.5,6.26]
[1617810799882,2.90695,1982.6,1982.5,6.26]
[1617810801982,2.90695,1982.8,1982.5,6.26]
[1617810803388,5.098,1983.5,1982.5,6.26]
[1617810803590,5.098,1983.5,1983.1,72.2894]
[1617810804128,5.098,1983.5,1983.4,2.90695]
[1617810804289,6.0925,1983.5,1983.4,9.08695]
[1617810804635,5.098,1983.5,1983.4,9.08695]
[1617810804956,0.01411152,1984.5,1983.4,9.08695]
[1617810805989,0.02822304,1984.6,1983.7,2.90695]
[1617810806189,59.5217,1984.8,1983.7,5.07805]
[1617810806590,59.5217,1984.8,1983.8,6.19]
[1617810807291,89.5217,1984.8,1983.8,6.19]
[1617810807590,89.5217,1984.8,1983.2,6.11]
[1617810807890,89.5217,1984.8,1983.9,6.27]
[1617810807891,93.7154,1984.8,1983.9,6.27]
[1617810808194,2.90695,1984.0,1983.2,9.16695]
[1617810808390,5.71315,1984.0,1983.2,2.90695]
[1617810808809,5.71315,1984.0,1983.3,6.3]
[1617810808990,5.71315,1984.0,1983.3,8.8969]
[1617810809591,2.90695,1984.0,1983.3,8.8969]
[1617810809991,60.5373,1984.8,1983.9,2.90695]
[1617810810192,59.5217,1984.8,1983.9,5.62035]
[1617810810593,59.5217,1984.8,1984.0,6.34]
[1617810812094,59.5217,1984.8,1983.4,13.9859]
[1617810812095,2.90695,1984.1,1983.7,2.90695]
[1617810812496,2.90695,1984.1,1983.8,6.0834]
[1617810813995,59.5217,1984.8,1983.8,8.99035]
[1617810813996,2.90695,1983.9,1983.8,8.99035]
[1617810814204,2.90695,1983.9,1983.8,11.43595]
[1617810817098,5.098,1985.2,1983.9,61.1655]
[1617810817398,5.098,1985.2,1984.0,6.23]
[1617810817800,5.098,1985.2,1984.0,36.23]
[1617810818100,5.098,1985.2,1984.6,2.90695]
[1617810818303,5.098,1985.2,1984.6,5.47315]
[1617810818602,5.098,1985.2,1984.7,6.27]
[1617810819500,5.098,1985.2,1985.1,83.2352]
[1617810819701,5.098,1985.2,1985.1,85.3843]
[1617810819901,5.098,1985.2,1985.1,91.6643]
[1617810820102,8.00495,1985.2,1985.1,91.6643]
[1617810821004,8.99935,1985.2,1985.1,91.6643]
[1617810822002,8.99935,1985.2,1985.1,8.4291]
[1617810822202,8.99935,1985.2,1985.1,6.28]
[1617810822603,8.99935,1985.2,1984.9,6.31]
[1617810823004,8.99935,1985.2,1985.1,6.34]
[1617810823304,8.99935,1985.2,1985.1,2.3004]
[1617810823506,8.99935,1985.2,1985.1,8.5904]
[1617810826615,8.99935,1985.2,1985.1,6.29]
[1617810826822,8.99935,1985.2,1985.1,81.4777]
[1617810827013,8.99935,1985.2,1985.1,75.1877]
[1617810827214,8.99935,1985.2,1985.1,81.4477]
[1617810827713,8.99935,1985.2,1985.1,6.26]
[1617810828116,8.99935,1985.2,1984.3,6.27]
[1617810828344,58.9031,1985.1,1984.3,6.27]
[1617810828514,30.0,1985.0,1984.3,6.27]
[1617810828733,30.0,1985.0,1983.4,63.9566]
[1617810828734,32.0,1985.0,1983.7,6.16]
[1617810829121,32.0,1985.0,1984.4,6.14]
[1617810829517,32.0,1985.0,1983.8,6.26]
[1617810829730,32.0,1985.0,1984.5,6.14]
[1617810829922,58.6336,1984.6,1984.5,5.873]
[1617810830117,65.52905,1984.6,1983.9,6.22]
[1617810830318,95.52905,1984.6,1983.3,13.7145]
[1617810830721,95.52905,1984.6,1983.4,6.19]
[1617810831020,36.89545,1984.6,1983.4,6.19]
[1617810831221,64.538,1983.9,1983.4,6.19]
[1617810831431,67.6676,1983.9,1983.4,6.19]
[1617810832220,2.90695,1983.5,1983.4,6.19]
[1617810832522,4.78065,1983.5,1983.3,6.24]
[1617810832725,4.78065,1983.5,1982.5,6.27]
[1617810832919,4.78065,1983.5,1983.4,6.23]
[1617810833220,75.3944,1983.1,1982.5,6.05]
[1617810833519,78.0791,1983.1,1982.5,6.05]
[1617810834120,2.90695,1982.6,1982.5,6.05]
[1617810834820,2.90695,1982.6,1981.9,6.05]
[1617810835120,2.90695,1982.6,1982.5,6.1]
[1617810835324,2.90695,1982.6,1981.9,6.2]
[1617810835620,2.90695,1982.6,1982.5,6.1]
[1617810836025,2.90695,1982.6,1981.9,6.29]
[1617810836323,78.0791,1983.1,1982.5,6.28]
[1617810836520,78.0791,1983.1,1982.3,6.1]
[1617810836821,78.0791,1983.1,1982.6,6.17]
[1617810837222,78.0791,1983.1,1982.3,6.1]
[1617810837423,78.0791,1983.1,1982.7,6.32]
[1617810837721,78.0791,1983.1,1982.3,6.18]
[1617810838023,78.0791,1983.1,1982.8,6.2]
[1617810838322,78.0791,1983.1,1982.3,6.25]
[1617810838728,78.0791,1983.1,1982.9,6.06]
[1617810839025,78.0791,1983.1,1982.3,6.25]
[1617810839224,78.0791,1983.1,1983.0,6.14]
[1617810839525,78.0791,1983.1,1982.3,6.06]
[1617810839836,78.0791,1983.1,1983.0,6.22]
[1617810840230,80.98605,1983.1,1982.4,2.90695]
[1617810840430,80.98605,1983.1,1983.0,6.29]
[1617810840825,80.98605,1983.1,1982.5,3.67]
[1617810841025,80.98605,1983.1,1982.4,2.90695]
[1617810841226,80.98605,1983.1,1983.0,6.06]
[1617810841427,80.98605,1983.1,1982.5,6.05]
[1617810841730,80.98605,1983.1,1983.0,6.31]
[1617810842129,80.98605,1983.1,1982.5,6.32]
[1617810842327,2.90695,1982.6,1981.9,8.94695]
[1617810842527,5.72625,1982.6,1981.9,2.90695]
[1617810842927,5.72625,1982.6,1982.0,6.27]
[1617810844233,2.8193,1982.6,1982.1,2.90695]
[1617810844430,2.8193,1982.6,1982.0,6.27]
[1617810844631,2.8193,1982.6,1982.2,6.13]
[1617810845031,2.8193,1982.6,1982.1,6.33]
[1617810845232,2.8193,1982.6,1982.3,6.31]
[1617810845433,2.8193,1982.6,1981.8,3.45]
[1617810845635,65.384,1982.3,1982.2,6.13]
[1617810845833,65.384,1982.3,1982.1,6.32]
[1617810846133,65.384,1982.3,1982.2,6.21]
[1617810846634,65.384,1982.3,1981.9,6.21]
[1617810846836,65.384,1982.3,1982.2,6.13]
[1617810847134,65.384,1982.3,1981.8,6.07]
[1617810847335,2.8193,1982.6,1982.2,6.05]
[1617810847535,30.9965,1983.0,1982.2,6.05]
[1617810847736,30.9965,1983.0,1981.8,6.08]
[1617810847737,30.0,1983.0,1981.8,6.08]
[1617810847944,69.5139,1982.2,1982.1,6.26]
[1617810848136,71.8497,1982.2,1981.8,6.11]
[1617810848337,2.90695,1981.9,1981.8,6.11]
[1617810848544,2.90695,1981.9,1981.6,2.90695]
[1617810848836,2.90695,1981.9,1981.8,6.16]
[1617810849036,2.90695,1981.9,1980.8,13.9553]
[1617810849238,63.1145,1981.7,1980.9,6.18]
[1617810849441,65.1425,1981.7,1981.2,6.24]
[1617810849639,65.1425,1981.7,1980.9,6.13]
[1617810850043,65.1425,1981.7,1981.3,6.34]
[1617810850244,2.90695,1981.4,1980.9,6.1]
[1617810850446,67.8628,1981.3,1980.9,6.1]
[1617810850643,70.0412,1981.3,1979.9,0.57]
[1617810850950,70.0412,1981.3,1981.0,6.1]
[1617810851145,70.0412,1981.3,1980.9,6.27]
[1617810851343,70.0412,1981.3,1979.9,0.4]
[1617810851644,70.0412,1981.3,1981.1,6.08]
[1617810851843,70.0412,1981.3,1980.5,6.36]
[1617810852046,70.0412,1981.3,1981.2,6.22]
[1617810852444,70.0412,1981.3,1980.6,2.90695]
[1617810852645,70.0412,1981.3,1981.2,6.19]
[1617810853146,70.0412,1981.3,1980.6,2.90695]
[1617810853346,70.0412,1981.3,1981.2,6.12]
[1617810853546,70.0412,1981.3,1980.7,6.29]
[1617810853748,70.0412,1981.3,1980.6,2.90695]
[1617810853949,70.0412,1981.3,1981.2,6.2]
[1617810854149,2.1784,1981.3,1980.7,6.07]
[1617810854349,79.7412,1981.2,1981.1,2.90695]
[1617810854754,79.7412,1981.2,1981.1,6.42695]
[1617810856255,82.64815,1981.2,1981.1,6.42695]
[1617810858159,82.64815,1981.2,1981.1,3.52]
[1617810858361,85.23825,1981.2,1981.1,3.52]
[1617810858560,85.23825,1981.2,1980.5,6.08]
[1617810858762,5.49705,1981.2,1980.5,6.08]
[1617810858961,5.49705,1981.2,1981.1,6.21]
[1617810859363,84.759,1980.7,1980.5,6.23]
[1617810859563,87.6337,1980.7,1980.4,2.90695]
[1617810859864,87.6337,1980.7,1980.6,6.26]
[1617810860164,87.6337,1980.7,1980.5,6.05]
[1617810860364,90.54065,1980.7,1980.4,2.90695]
[1617810860564,90.54065,1980.7,1980.6,6.35]
[1617810860965,90.54065,1980.7,1980.4,2.90695]
[1617810861165,90.54065,1980.7,1980.6,6.21]
[1617810861365,87.66595,1980.7,1980.6,6.21]
[1617810861566,87.66595,1980.7,1980.5,6.26]
[1617810861766,2.90695,1980.7,1980.6,8.9521]
[1617810862267,2.90695,1980.7,1980.6,2.8421]
[1617810862466,2.90695,1980.7,1980.6,11.91905]
[1617810866471,2.90695,1980.7,1980.6,9.0121]
[1617810867371,2.90695,1980.7,1980.6,6.17]
[1617810867674,2.90695,1980.7,1980.5,6.31]
[1617810868373,2.90695,1980.7,1980.6,2.90695]
[1617810868772,2.90695,1980.7,1980.6,9.19695]
[1617810869873,2.90695,1980.7,1980.6,6.29]
[1617810870279,65.5672,1980.6,1979.9,6.13]
[1617810870475,2.90695,1980.0,1979.8,12.9837]
[1617810870673,4.85295,1980.0,1979.8,12.9837]
[1617810870874,4.85295,1980.0,1979.9,6.23]
[1617810871473,1.946,1980.0,1979.9,6.23]
[1617810871674,2.0488,1980.7,1979.9,87.5086]
[1617810871874,59.6617,1981.5,1979.9,87.5086]
[1617810872075,59.6617,1981.5,1980.0,30.0]
[1617810872290,31.0084,1982.2,1980.0,30.0]
[1617810872483,2.90695,1981.2,1980.8,2.90695]
[1617810872675,2.90695,1981.2,1980.8,5.33295]
[1617810872879,2.90695,1981.2,1980.9,6.36]
[1617810873979,83.4481,1982.5,1981.2,71.9229]
[1617810874178,83.4481,1982.5,1981.2,74.3398]
[1617810874379,2.0,1983.2,1981.9,2.90695]
[1617810874578,85.4228,1983.2,1981.9,77.14715]
[1617810874787,85.4228,1983.2,1982.0,6.3]
[1617810874978,115.4228,1983.2,1982.0,6.3]
[1617810875702,0.9938,1982.8,1982.0,6.3]
[1617810876478,2.90695,1982.1,1982.0,6.3]
[1617810877679,2.90695,1982.1,1981.2,6.15]
[1617810877988,2.90695,1982.1,1982.0,6.29]
[1617810878179,2.90695,1982.1,1981.2,6.28]
[1617810878381,6.2958,1982.3,1981.3,2.90695]
[1617810878583,5.2962,1982.3,1981.3,2.90695]
[1617810878811,5.2962,1982.3,1981.4,6.21]
[1617810879182,35.2962,1982.3,1981.2,6.16]
[1617810879385,60.9603,1981.8,1981.2,6.16]
[1617810879583,94.7808,1981.8,1981.5,6.33]
[1617810879784,94.7808,1981.8,1981.0,6.3]
[1617810879986,94.7808,1981.8,1980.3,13.4122]
[1617810879987,94.7808,1981.8,1980.4,6.33]
[1617810880186,96.7808,1981.8,1981.6,5.9483]
[1617810880385,96.7808,1981.8,1980.3,13.4122]
[1617810880386,35.8205,1981.8,1980.3,13.4122]
[1617810880587,67.2715,1981.3,1980.4,8.98695]
[1617810880885,69.8564,1981.3,1980.4,6.08]
[1617810881085,30.0,1981.2,1980.4,6.08]
[1617810881286,67.3123,1980.6,1980.4,6.08]
[1617810881486,3.0629,1980.6,1980.1,6.28]
[1617810881686,74.4886,1980.2,1980.1,6.28]
[1617810881891,76.9445,1980.2,1979.6,0.01]
[1617810882411,2.90695,1979.7,1979.6,0.01]
[1617810882604,5.56185,1979.7,1979.6,0.01]
[1617810883002,69.02865,1979.7,1979.6,0.01]
[1617810885994,5.56185,1979.7,1979.6,0.01]
[1617810886193,2.90695,1979.7,1979.6,0.01]
[1617810886592,2.90695,1980.0,1979.6,2.91695]
[1617810886792,2.90695,1980.0,1979.6,7.72555]
[1617810887092,2.90695,1980.0,1979.6,37.72555]
[1617810888093,2.90695,1980.0,1979.6,5.72555]
[1617810888494,2.90695,1980.0,1979.9,2.90695]
[1617810889093,2.90695,1980.0,1979.9,9.22695]
[1617810891203,2.90695,1980.0,1979.9,6.32]
[1617810891604,2.90695,1980.0,1979.6,6.32]
[1617810891803,2.90695,1980.0,1979.9,6.13]
[1617810892204,2.90695,1980.0,1979.6,6.12]
[1617810892403,5.64575,1980.0,1979.9,6.18]
[1617810892603,2.7388,1980.0,1979.9,6.18]
[1617810892808,2.7388,1980.0,1979.5,12.8754]
[1617810892809,2.7388,1980.0,1979.6,6.23]
[1617810893103,2.7388,1980.0,1979.9,6.31]
[1617810893305,2.7388,1980.0,1979.6,6.14]
[1617810893704,2.7388,1980.0,1979.9,6.29]
[1617810894005,2.803,1980.6,1979.7,6.13]
[1617810894206,84.0643,1980.7,1979.9,6.34]
[1617810894606,2.90695,1980.0,1979.8,6.14]
[1617810894806,2.90695,1980.0,1979.5,59.9528]
[1617810895006,2.90695,1980.0,1979.7,6.17]
[1617810895208,2.90695,1980.0,1979.9,6.2]
[1617810895505,2.90695,1980.0,1979.8,6.19]
[1617810896010,2.90695,1980.0,1979.9,6.05]
[1617810896208,2.90695,1980.0,1979.5,59.9528]
[1617810896508,5.21205,1980.0,1979.8,6.36]
[1617810896709,5.21205,1980.0,1979.6,9.23695]
[1617810896908,5.21205,1980.0,1979.8,6.2]
[1617810897310,5.21205,1980.0,1979.7,6.32]
[1617810897611,5.21205,1980.0,1979.9,6.06]
[1617810897810,5.21205,1980.0,1979.7,6.13]
[1617810898109,5.21205,1980.0,1979.9,6.23]
[1617810898409,5.21205,1980.0,1979.7,6.17]
[1617810898809,5.21205,1980.0,1979.9,6.36]
[1617810899011,5.21205,1980.0,1979.5,3.45]
[1617810899211,5.21205,1980.0,1979.8,5.73]
[1617810899449,5.21205,1980.0,1979.9,6.05]
[1617810899450,2.90695,1980.0,1979.9,6.05]
[1617810899636,2.90695,1980.0,1979.4,2.90695]
[1617810899637,2.90695,1980.0,1979.6,62.7682]
[1617810899813,2.90695,1980.0,1979.7,5.85]
[1617810900015,2.90695,1980.0,1979.9,5.77]
[1617810900314,2.90695,1980.0,1979.6,58.4682]
[1617810900516,77.1977,1980.7,1979.6,58.4682]
[1617810900517,77.1977,1980.7,1979.8,2.90695]
[1617810900714,77.1977,1980.7,1979.6,58.4682]
[1617810900715,77.1977,1980.7,1979.9,6.09]
[1617810901013,77.1977,1980.7,1979.7,6.23]
[1617810901315,77.1977,1980.7,1980.0,6.12]
[1617810901514,77.1977,1980.7,1979.6,58.4682]
[1617810901714,77.1977,1980.7,1979.7,6.3]
[1617810901915,77.1977,1980.7,1980.1,6.27]
[1617810902216,77.1977,1980.7,1979.6,58.4682]
[1617810902415,77.1977,1980.7,1980.2,6.28]
[1617810902714,107.1977,1980.7,1979.6,58.4682]
[1617810902914,107.1977,1980.7,1979.7,6.06]
[1617810903115,107.1977,1980.7,1980.3,6.23]
[1617810903329,107.1977,1980.7,1979.6,58.4682]
[1617810903520,77.1977,1980.7,1979.7,6.34]
[1617810903716,77.1977,1980.7,1980.4,6.32]
[1617810903918,77.1977,1980.7,1979.6,58.4682]
[1617810904117,77.1977,1980.7,1979.7,6.11]
[1617810904518,2.90695,1979.8,1979.7,6.11]
[1617810904718,5.36875,1979.8,1979.7,6.11]
[1617810905823,2.90695,1979.8,1979.7,6.11]
[1617810906223,0.01382946,1983.0,1979.7,6.11]
[1617810906428,7.88649464,1983.3,1979.7,8.5883]
[1617810906429,5.11184006,1983.3,1979.7,8.5883]
[1617810906624,66.1243,1981.6,1980.2,70.5293]
[1617810906826,66.1243,1981.6,1980.2,73.3395]
[1617810907024,66.1243,1981.6,1980.3,6.09]
[1617810907723,66.1243,1981.6,1980.3,36.09]
[1617810908224,32.0,1982.7,1980.3,36.09]
[1617810908460,30.0,1982.2,1980.8,60.4506]
[1617810908635,30.0,1982.2,1981.0,2.90695]
[1617810909030,30.0,1982.2,1981.1,6.12]
[1617810910527,2.90695,1981.2,1981.1,6.12]
[1617810912628,2.90695,1981.2,1980.9,6.23]
[1617810913028,2.90695,1981.2,1981.1,6.34]
[1617810913443,2.90695,1981.2,1981.0,6.11]
[1617810913628,2.90695,1981.2,1981.1,6.27]
[1617810914028,2.90695,1981.2,1980.7,6.26]
[1617810914231,2.90695,1981.2,1981.1,6.09]
[1617810914429,3.90775,1981.2,1981.1,6.09]
[1617810914729,3.90775,1981.2,1980.4,6.26]
[1617810914930,3.90775,1981.2,1981.1,6.28]
[1617810915229,3.90775,1981.2,1980.6,6.13]
[1617810915430,3.90775,1981.2,1980.4,6.25]
[1617810916830,2.90695,1980.5,1980.4,6.25]
[1617810917029,5.84955,1980.5,1980.4,6.25]
[1617810917831,5.84955,1980.5,1980.0,6.06]
[1617810918032,5.84955,1980.5,1980.4,6.3]
[1617810918231,5.84955,1980.5,1979.5,6.11]
[1617810918533,5.84955,1980.5,1980.4,6.16]
[1617810918931,6.86975,1980.5,1980.2,6.34]
[1617810919233,6.86975,1980.5,1980.4,6.34]
[1617810919632,6.86975,1980.5,1980.3,6.17]
[1617810919831,6.86975,1980.5,1980.4,6.25]
[1617810920231,6.86975,1980.5,1979.2,65.8772]
[1617810920531,36.86975,1980.5,1980.4,6.26]
[1617810920734,36.86975,1980.5,1979.5,6.28]
[1617810920935,70.2676,1980.4,1979.1,2.90695]
[1617810921341,2.0,1980.3,1979.1,2.90695]
[1617810921632,2.0,1980.3,1979.5,6.22]
[1617810922739,2.90695,1979.6,1979.5,6.22]
[1617810922936,5.45415,1979.6,1979.5,6.22]
[1617810924635,64.45965,1979.6,1979.5,6.22]
[1617810927542,5.45415,1979.6,1979.5,6.22]
[1617810927741,2.90695,1979.6,1979.5,6.22]
[1617810928845,2.90695,1979.6,1979.5,8.435]
[1617810929944,2.90695,1979.6,1979.5,6.22]
[1617810930142,4.80385,1979.6,1979.5,6.22]
[1617810931044,4.80385,1979.6,1979.5,5.5085]
[1617810934848,2.90695,1979.6,1979.5,5.5085]
[1617810935048,2.90695,1979.6,1979.5,75.364]
[1617810938057,2.90695,1979.6,1979.5,5.5085]
[1617810941861,76.12745,1979.6,1979.5,5.5085]
[1617810942267,76.12745,1979.6,1979.5,5.4061]
[1617810943062,32.90695,1979.6,1979.5,5.4061]
[1617810943262,66.983,1979.5,1978.3,14.0486]
[1617810943663,30.0,1979.4,1978.2,2.90695]
[1617810943864,30.0,1979.4,1978.2,1.75475]
[1617810944063,30.0,1979.4,1978.4,6.31]
[1617810944269,30.0,1979.4,1978.3,6.22]
[1617810944464,2.0,1979.3,1978.0,6.33]
[1617810944670,79.4077,1978.7,1978.5,5.6248]
[1617810944869,81.616,1978.7,1978.4,6.27]
[1617810945070,2.90695,1978.5,1978.1,6.36]
[1617810945268,2.90695,1978.5,1977.4,2.90695]
[1617810945469,2.90695,1978.5,1977.7,3.12]
[1617810945668,2.90695,1978.5,1977.5,0.22]
[1617810945869,2.90695,1978.5,1977.4,2.90695]
[1617810946168,2.90695,1978.5,1977.5,6.36]
[1617810946668,32.90695,1978.5,1977.5,6.36]
[1617810946870,81.251,1978.0,1977.5,6.36]
[1617810947169,2.90695,1977.6,1977.5,6.36]
[1617810948770,2.90695,1977.6,1977.5,87.8066]
[1617810950970,2.90695,1977.6,1977.5,6.36]
[1617810951172,93.41425,1977.6,1977.5,6.36]
[1617810951384,63.41425,1977.6,1977.5,6.36]
[1617810951872,63.41425,1977.6,1976.7,6.1]
[1617810952074,93.41425,1977.6,1977.5,6.17]
[1617810952272,94.43255,1977.6,1977.5,6.17]
[1617810952474,33.92525,1977.6,1976.7,6.29]
[1617810952974,84.3216,1977.1,1976.0,6.12]
[1617810953173,2.90695,1976.8,1976.7,2.90695]
[1617810953575,2.90695,1976.8,1976.7,9.23695]
[1617810956677,4.82015,1976.8,1976.7,9.23695]
[1617810958477,2.90695,1976.8,1976.7,9.23695]
[1617810958879,2.90695,1976.8,1976.7,11.34665]
[1617810959880,2.90695,1976.8,1976.7,80.37175]
[1617810963989,2.90695,1976.8,1976.7,11.34665]
[1617810966290,2.90695,1976.8,1976.7,9.23695]
[1617810966889,2.90695,1976.8,1976.7,6.33]
[1617810967192,5.41525,1976.8,1976.7,6.33]
[1617810967390,79.1181,1976.7,1976.1,6.19]
[1617810967790,79.1181,1976.7,1975.8,6.29]
[1617810968091,79.1181,1976.7,1976.2,6.2]
[1617810968590,79.1181,1976.7,1975.7,2.90695]
[1617810968591,79.1181,1976.7,1975.8,6.19]
[1617810968790,79.1181,1976.7,1976.3,6.3]
[1617810968991,109.1181,1976.7,1975.8,6.11]
[1617810969296,2.90695,1976.4,1975.7,2.90695]
[1617810969494,5.64415,1976.4,1975.7,2.90695]
[1617810969691,5.64415,1976.4,1975.9,6.34]
[1617810969892,5.64415,1976.4,1975.8,6.08]
[1617810970192,5.64415,1976.4,1975.7,2.90695]
[1617810970392,5.64415,1976.4,1975.8,6.28]
[1617810970891,6.66415,1976.4,1975.8,6.28]
[1617810971293,2.90695,1975.9,1975.8,6.28]
[1617810971996,5.38175,1975.9,1975.8,6.28]
[1617810972700,5.38175,1975.9,1975.8,5.5224]
[1617810973223,2.90695,1975.7,1975.6,6.2]
[1617810973396,2.90695,1975.7,1975.2,2.90695]
[1617810973595,76.0857,1975.5,1975.2,2.90695]
[1617810973798,78.4399,1975.5,1975.3,6.24]
[1617810974208,78.4399,1975.5,1974.6,6.35]
[1617810975300,78.4399,1975.5,1974.7,2.90695]
[1617810975700,78.4399,1975.5,1974.8,6.22]
[1617810976299,2.3542,1975.5,1974.8,6.22]
[1617810976509,2.3542,1975.5,1974.8,66.9895]
[1617810976800,66.8251,1975.9,1974.8,66.9895]
[1617810977020,66.8251,1975.9,1974.8,69.6295]
[1617810977238,2.90695,1975.3,1975.2,2.90695]
[1617810977700,2.90695,1975.3,1975.2,9.25695]
[1617810978101,63.3883,1975.8,1975.2,9.25695]
[1617810978301,63.3883,1975.8,1975.2,12.23885]
[1617810979304,30.0,1977.0,1975.5,73.51]
[1617810979502,30.0,1977.0,1975.7,2.90695]
[1617810979802,30.0,1977.0,1975.8,6.16]
[1617810980202,57.6357,1977.1,1975.8,6.16]
[1617810980803,30.0,1977.5,1975.8,6.16]
[1617810981027,81.7553,1976.2,1975.8,6.16]
[1617810981305,2.90695,1975.9,1975.8,6.16]
[1617810981506,2.90695,1975.9,1975.5,6.19]
[1617810981706,2.90695,1975.9,1975.8,6.32]
[1617810982106,2.90695,1975.9,1975.5,6.07]
[1617810982307,2.90695,1975.9,1975.2,3.47]
[1617810982508,2.90695,1975.9,1975.8,5.86]
[1617810982708,78.14605,1975.9,1975.6,6.32]
[1617810982909,78.14605,1975.9,1975.2,6.27]
[1617810983109,2.90695,1975.9,1975.8,6.07]
[1617810983312,75.2848,1975.8,1975.7,6.19]
[1617810983513,75.2848,1975.8,1975.2,6.18]
[1617810983730,75.2848,1975.8,1975.1,2.90695]
[1617810984015,76.2971,1975.8,1975.2,6.26]
[1617810984414,76.2971,1975.8,1974.7,6.25]
[1617810985218,2.90695,1974.8,1974.7,9.15695]
[1617810985428,5.79605,1974.8,1974.7,9.15695]
[1617810995635,2.90695,1974.8,1974.7,9.15695]
[1617811002138,4.93305,1974.8,1974.7,9.15695]
[1617811004743,2.90695,1974.8,1974.7,9.15695]
[1617811005546,2.90695,1974.8,1974.7,6.25]
[1617811007246,5.72545,1974.8,1974.7,6.25]
[1617811008549,2.90695,1974.8,1974.7,6.25]
[1617811016152,84.64285,1974.8,1974.7,6.25]
[1617811016754,1.006,1976.2,1974.7,6.25]
[1617811016955,67.9231,1976.3,1974.7,6.25]
[1617811017156,67.9231,1976.3,1974.7,36.25]
[1617811017455,2.0,1977.2,1975.6,2.90695]
[1617811017666,65.5745,1976.9,1975.6,5.67215]
[1617811018057,65.5745,1976.9,1975.7,6.15]
[1617811019462,2.90695,1975.8,1975.7,6.15]